bitfinex-derivatives/quotes_BNBF0:USTF0_20250331
["timestamp","ask_amount","ask_price","bid_price","bid_amount"]
[1743392461005,0.30599475,601.49,600.39,0.3331168]
[1743392462505,0.33251313,601.48,600.39,0.3331168]
[1743392462701,0.30599475,601.47,600.39,0.3331168]
[1743392463001,0.33252419,601.46,600.39,0.3331168]
[1743392463407,0.30599475,601.45,600.39,0.3331168]
[1743392464106,0.30601435,601.44,600.39,0.3331168]
[1743392464306,0.59595515,601.44,600.39,0.3331168]
[1743392464502,0.30601435,601.43,600.39,0.3331168]
[1743392464705,0.30601435,601.43,599.95,0.28995167]
[1743392464905,0.30601435,601.43,599.96,0.33335555]
[1743392465108,0.3325463,601.42,599.96,0.33335555]
[1743392465402,0.30601435,601.41,599.96,0.33335555]
[1743392466606,0.33255736,601.4,599.96,0.33335555]
[1743392467009,0.30601435,601.39,599.96,0.33335555]
[1743392467506,0.30601435,601.38,599.96,0.33335555]
[1743392467705,0.30601435,601.37,599.96,0.33335555]
[1743392468006,0.30601435,601.36,599.96,0.33335555]
[1743392468207,0.30601435,601.35,599.96,0.33335555]
[1743392468408,0.30601435,601.34,599.96,0.33335555]
[1743392468708,0.30601435,601.33,599.96,0.33335555]
[1743392468907,0.30601435,601.32,599.96,0.33335555]
[1743392469105,0.30601435,601.31,599.96,0.33335555]
[1743392469307,0.63872216,601.3,599.96,0.33335555]
[1743392469603,0.30610949,601.29,599.96,0.33335555]
[1743392469807,0.30610949,601.28,599.96,0.33335555]
[1743392470002,0.30610949,601.27,599.96,0.33335555]
[1743392470204,0.30610949,601.26,599.96,0.33335555]
[1743392470407,0.30610949,601.25,599.96,0.33335555]
[1743392470602,0.30610949,601.24,599.96,0.33335555]
[1743392470902,0.30610949,601.23,599.96,0.33335555]
[1743392471108,0.30609754,601.22,599.96,0.33335555]
[1743392471402,0.30609754,601.21,599.96,0.33335555]
[1743392471604,0.30609754,601.2,599.97,0.28867128]
[1743392471807,0.30609754,601.23,599.97,0.28867128]
[1743392472009,0.30609754,601.22,599.98,0.33334444]
[1743392472307,0.30609754,601.21,599.99,0.28867128]
[1743392472508,0.30609754,601.21,599.98,0.33334444]
[1743392472509,0.30609754,601.23,599.98,0.33334444]
[1743392473009,0.30609754,601.28,599.98,0.33334444]
[1743392473405,0.28994564,601.22,599.98,0.33334444]
[1743392473605,0.30609754,601.21,599.98,0.33334444]
[1743392474311,0.28994564,601.22,599.98,0.33334444]
[1743392474606,0.30608235,601.21,599.98,0.33334444]
[1743392476008,0.3326182,601.29,599.98,0.33334444]
[1743392476009,0.30608235,601.2,599.98,0.33334444]
[1743392476206,0.30608235,601.28,599.98,0.33334444]
[1743392476405,0.30608235,601.27,599.98,0.33334444]
[1743392476605,0.30608235,601.28,599.98,0.33334444]
[1743392476916,0.30608235,601.27,599.98,0.33334444]
[1743392477210,0.30608235,601.26,599.98,0.33334444]
[1743392478311,0.29000604,601.27,599.98,0.33334444]
[1743392478511,0.30607373,601.26,599.98,0.33334444]
[1743392479111,0.98407373,601.25,599.98,0.33334444]
[1743392479314,0.30607373,601.24,599.98,0.33334444]
[1743392480213,0.29001088,601.23,599.98,0.33334444]
[1743392480413,0.30607373,601.22,599.98,0.33334444]
[1743392485211,0.30607373,601.24,599.98,0.33334444]
[1743392486314,0.2898261,601.23,599.98,0.33334444]
[1743392486515,0.30607373,601.22,599.98,0.33334444]
[1743392487210,0.2898261,601.23,599.98,0.33334444]
[1743392487417,0.30607184,601.22,599.98,0.33334444]
[1743392488116,0.28982852,601.21,599.98,0.33334444]
[1743392488513,0.30607184,601.2,599.98,0.33334444]
[1743392489012,0.28982852,601.21,599.98,0.33334444]
[1743392489216,0.30606381,601.2,599.98,0.33334444]
[1743392490822,0.28982852,601.21,599.98,0.33334444]
[1743392491021,0.30607182,601.2,599.98,0.33334444]
[1743392492120,0.30607182,601.2,599.99,0.28862701]
[1743392492830,0.30607182,601.2,599.98,0.33334444]
[1743392494122,0.30607182,601.24,599.98,0.33334444]
[1743392494423,0.28981886,601.19,599.98,0.33334444]
[1743392494622,0.30607182,601.18,599.98,0.33334444]
[1743392496223,0.28981886,601.19,599.98,0.33334444]
[1743392496424,0.30602606,601.18,599.98,0.33334444]
[1743392497118,0.30602606,601.24,599.98,0.33334444]
[1743392497319,0.28981886,601.17,599.98,0.33334444]
[1743392497521,0.30602606,601.16,599.98,0.33334444]
[1743392498027,0.28981886,601.17,599.98,0.33334444]
[1743392498221,0.30603046,601.16,599.98,0.33334444]
[1743392500125,0.30603046,601.15,599.98,0.33334444]
[1743392500324,0.30603046,601.14,599.98,0.33334444]
[1743392506034,0.30603046,601.13,599.98,0.33334444]
[1743392506239,0.30603046,601.12,599.98,0.33334444]
[1743392506443,0.28993476,601.13,599.98,0.33334444]
[1743392506636,0.30603046,601.12,599.98,0.33334444]
[1743392506842,0.28993476,601.13,599.98,0.33334444]
[1743392507041,0.30606756,601.12,599.98,0.33334444]
[1743392509139,0.30606756,601.24,599.98,0.33334444]
[1743392509338,0.28986956,601.11,599.98,0.33334444]
[1743392509542,0.30606756,601.1,599.98,0.33334444]
[1743392509739,0.30606756,601.22,599.98,0.33334444]
[1743392510344,0.28987318,601.21,599.98,0.33334444]
[1743392510643,0.30606756,601.2,599.98,0.33334444]
[1743392512138,0.30606756,601.22,599.98,0.33334444]
[1743392512341,0.59602769,601.19,599.98,0.33334444]
[1743392512542,0.30606756,601.18,599.98,0.33334444]
[1743392514240,0.30608595,601.17,599.98,0.33334444]
[1743392514441,0.30608595,601.18,599.98,0.33334444]
[1743392514641,0.30608595,601.17,599.98,0.33334444]
[1743392514844,0.30608595,601.18,599.98,0.33334444]
[1743392515141,0.30608595,601.17,599.98,0.33334444]
[1743392515441,0.30609269,601.16,599.98,0.33334444]
[1743392517746,0.28985266,601.17,599.98,0.33334444]
[1743392517943,0.30608863,601.16,599.98,0.33334444]
[1743392518146,0.30608863,601.22,599.98,0.33334444]
[1743392518350,0.28993839,601.15,599.98,0.33334444]
[1743392518541,0.30608863,601.14,599.98,0.33334444]
[1743392524144,0.30608863,601.13,599.98,0.33334444]
[1743392524450,0.30606228,601.12,599.98,0.33334444]
[1743392527151,0.30606228,601.22,599.98,0.33334444]
[1743392527347,0.2899251,601.11,599.98,0.33334444]
[1743392527553,0.30606228,601.1,599.98,0.33334444]
[1743392527953,0.33265139,601.23,599.98,0.33334444]
[1743392528157,0.30605776,601.22,599.98,0.33334444]
[1743392528558,0.28983335,601.21,599.98,0.33334444]
[1743392528752,0.30605776,601.2,599.98,0.33334444]
[1743392530158,0.30605776,601.22,599.98,0.33334444]
[1743392530357,0.33265139,601.23,599.98,0.33334444]
[1743392530358,0.2899251,601.19,599.98,0.33334444]
[1743392530657,0.30605776,601.18,599.98,0.33334444]
[1743392535356,0.30602757,601.17,599.98,0.33334444]
[1743392535560,0.30602757,601.18,599.98,0.33334444]
[1743392535858,0.30602757,601.17,599.99,0.28861115]
[1743392536057,0.30602757,601.22,600.0,0.33333333]
[1743392536363,0.2898068,601.16,600.01,0.28861115]
[1743392536560,0.30602757,601.15,600.02,0.33332222]
[1743392537062,0.30602757,601.15,600.03,0.28861848]
[1743392537257,0.2898068,601.16,600.04,0.33331111]
[1743392537457,0.30602084,601.15,600.04,0.33331111]
[1743392537859,0.649,601.14,600.04,0.33331111]
[1743392538362,0.30603215,601.13,600.04,0.33331111]
[1743392539365,0.28983938,601.12,600.04,0.33331111]
[1743392539560,0.30603215,601.11,600.04,0.33331111]
[1743392542165,0.30603215,601.13,600.04,0.33331111]
[1743392542362,0.289843,601.1,600.04,0.33331111]
[1743392542561,0.30604892,601.09,600.04,0.33331111]
[1743392545171,0.30604892,601.08,600.04,0.33331111]
[1743392545368,0.28984542,601.08,600.04,0.33331111]
[1743392545567,0.30604892,601.07,600.04,0.33331111]
[1743392549174,0.30604892,601.07,600.05,0.28861477]
[1743392549380,0.30604892,601.07,600.06,0.3333]
[1743392549676,0.28984542,601.08,600.06,0.3333]
[1743392549874,0.30601491,601.07,600.06,0.3333]
[1743392550577,0.28984542,601.08,600.06,0.3333]
[1743392550975,0.649,601.14,600.06,0.3333]
[1743392551175,0.30599289,601.13,600.06,0.3333]
[1743392551475,0.649,601.14,600.06,0.3333]
[1743392551871,0.30598028,601.13,600.06,0.3333]
[1743392552276,0.59587399,601.13,600.06,0.3333]
[1743392552576,0.28989371,601.13,600.06,0.3333]
[1743392553879,0.649,601.14,600.06,0.3333]
[1743392554075,0.30598227,601.13,600.06,0.3333]
[1743392555077,0.28988888,601.12,600.06,0.3333]
[1743392556983,0.649,601.14,600.06,0.3333]
[1743392557182,0.30598713,601.13,600.06,0.3333]
[1743392558082,0.33265139,601.23,600.06,0.3333]
[1743392558284,0.28989129,601.12,600.06,0.3333]
[1743392558484,0.33265139,601.23,600.06,0.3333]
[1743392558684,0.30598048,601.22,600.06,0.3333]
[1743392559384,0.28978146,601.21,600.06,0.3333]
[1743392559589,0.30598048,601.2,600.06,0.3333]
[1743392560190,0.30598048,601.22,600.06,0.3333]
[1743392560386,0.30598048,601.21,600.07,0.28857907]
[1743392560590,0.33265139,601.23,600.08,0.33328889]
[1743392560787,0.30598497,601.2,600.08,0.33328889]
[1743392560990,0.30598497,601.19,600.08,0.33328889]
[1743392563291,0.28978266,601.18,600.08,0.33328889]
[1743392563491,0.30598497,601.17,600.08,0.33328889]
[1743392564289,0.28978266,601.18,600.08,0.33328889]
[1743392564493,0.30598976,601.17,600.08,0.33328889]
[1743392566295,0.59577363,601.16,600.08,0.33328889]
[1743392566492,0.30598976,601.15,600.08,0.33328889]
[1743392567394,0.28978387,601.16,600.08,0.33328889]
[1743392569000,0.778,601.2,600.08,0.33328889]
[1743392569304,0.28978146,601.15,600.08,0.33328889]
[1743392569502,0.30598466,601.14,600.08,0.33328889]
[1743392571705,0.30604895,601.13,600.08,0.33328889]
[1743392571905,0.30604895,601.12,600.08,0.33328889]
[1743392572105,0.30604895,601.14,600.08,0.33328889]
[1743392572305,0.30604895,601.19,600.08,0.33328889]
[1743392572606,0.30604895,601.18,600.08,0.33328889]
[1743392572805,0.30604895,601.19,600.08,0.33328889]
[1743392573107,0.30604895,601.18,600.08,0.33328889]
[1743392573306,0.28989371,601.17,600.08,0.33328889]
[1743392573506,0.59594266,601.17,600.08,0.33328889]
[1743392573808,0.30604895,601.16,600.09,0.28861123]
[1743392574007,0.30604895,601.16,600.1,0.33327778]
[1743392574908,0.778,601.2,600.1,0.33327778]
[1743392575109,0.30600816,601.19,600.1,0.33327778]
[1743392576409,0.28986111,601.18,600.1,0.33327778]
[1743392576608,0.30600816,601.17,600.1,0.33327778]
[1743392576910,0.30600816,601.17,600.11,0.28858907]
[1743392577104,0.30600816,601.17,600.12,0.33326667]
[1743392577303,0.30600816,601.17,600.13,0.28858907]
[1743392577605,0.30600816,601.17,600.14,0.33325557]
[1743392577809,0.30600816,601.17,600.15,0.28858907]
[1743392578012,0.30600816,601.17,600.16,0.33324446]
[1743392578309,0.30600816,601.16,600.17,0.28858907]
[1743392578509,0.30600816,601.19,600.18,0.33323336]
[1743392579010,0.28984421,601.18,600.18,0.33323336]
[1743392579207,0.30600816,601.17,600.18,0.33323336]
[1743392581205,0.30600816,601.19,600.18,0.33323336]
[1743392581510,0.30600816,601.18,600.18,0.33323336]
[1743392581710,0.30600816,601.19,600.18,0.33323336]
[1743392582217,0.28985266,601.18,600.18,0.33323336]
[1743392582411,0.30600816,601.17,600.18,0.33323336]
[1743392584207,0.30600816,601.19,600.18,0.33323336]
[1743392584914,0.28988525,601.18,600.18,0.33323336]
[1743392585114,0.30600816,601.17,600.18,0.33323336]
[1743392587416,0.28988525,601.18,600.18,0.33323336]
[1743392587616,0.30606437,601.17,600.18,0.33323336]
[1743392590318,0.30606437,601.16,600.18,0.33323336]
[1743392590618,0.30606437,601.19,600.18,0.33323336]
[1743392590820,0.2899094,601.15,600.18,0.33323336]
[1743392591119,0.30606437,601.14,600.18,0.33323336]
[1743392593222,0.30606437,601.19,600.18,0.33323336]
[1743392593422,0.28981524,601.13,600.18,0.33323336]
[1743392593616,0.30606437,601.12,600.18,0.33323336]
[1743392595118,0.30600103,601.11,600.18,0.33323336]
[1743392595422,0.30600103,601.1,600.18,0.33323336]
[1743392595621,0.30600103,601.12,600.18,0.33323336]
[1743392596322,0.30600103,601.11,600.18,0.33323336]
[1743392596523,0.59580541,601.11,600.18,0.33323336]
[1743392596724,0.30600103,601.1,600.18,0.33323336]
[1743392597521,0.30599898,601.09,600.18,0.33323336]
[1743392597719,0.30599898,601.1,600.18,0.33323336]
[1743392601824,0.30599834,601.09,600.18,0.33323336]
[1743392602028,0.30599834,601.1,600.18,0.33323336]
[1743392602228,0.30599834,601.08,600.18,0.33323336]
[1743392602430,0.30599149,601.07,600.18,0.33323336]
[1743392602629,0.30599149,601.19,600.18,0.33323336]
[1743392603328,0.2897706,601.18,600.18,0.33323336]
[1743392603524,0.30599149,601.17,600.18,0.33323336]
[1743392605230,0.30599149,601.19,600.18,0.33323336]
[1743392605431,0.28977301,601.16,600.18,0.33323336]
[1743392605633,0.30599149,601.15,600.18,0.33323336]
[1743392607839,0.30600595,601.14,600.18,0.33323336]
[1743392608035,0.30600595,601.15,600.18,0.33323336]
[1743392608334,0.30600595,601.14,600.18,0.33323336]
[1743392608636,0.30600595,601.13,600.18,0.33323336]
[1743392608833,0.30600595,601.12,600.18,0.33323336]
[1743392609029,0.30600595,601.35,600.18,0.33323336]
[1743392609233,0.28982973,601.12,600.18,0.33323336]
[1743392609431,0.30600595,601.11,600.18,0.33323336]
[1743392609835,0.30600595,601.35,600.18,0.33323336]
[1743392610136,0.508,601.1,600.18,0.33323336]
[1743392610337,0.30600595,601.09,600.18,0.33323336]
[1743392610837,0.28979473,601.08,600.18,0.33323336]
[1743392611039,0.30600595,601.07,600.18,0.33323336]
[1743392614348,0.30600595,601.09,600.18,0.33323336]
[1743392614546,0.30600595,601.08,600.18,0.33323336]
[1743392614748,0.508,601.1,600.18,0.33323336]
[1743392614947,0.30600254,601.09,600.18,0.33323336]
[1743392615247,0.28985749,601.07,600.18,0.33323336]
[1743392615448,0.30600254,601.06,600.18,0.33323336]
[1743392616251,0.28985749,601.07,600.18,0.33323336]
[1743392616550,0.30600108,601.06,600.18,0.33323336]
[1743392616753,0.28985749,601.07,600.18,0.33323336]
[1743392616953,0.30599937,601.06,600.18,0.33323336]
[1743392617153,0.30599937,601.09,600.18,0.33323336]
[1743392618254,0.59585565,601.09,600.18,0.33323336]
[1743392618454,0.30599937,601.08,600.18,0.33323336]
[1743392620349,0.30599937,601.09,600.18,0.33323336]
[1743392621252,0.28987439,601.08,600.18,0.33323336]
[1743392621557,0.30599937,601.07,600.18,0.33323336]
[1743392623158,0.30599937,601.09,600.18,0.33323336]
[1743392623353,0.30599937,601.08,600.18,0.33323336]
[1743392623553,0.30599937,601.09,600.18,0.33323336]
[1743392624159,0.28988284,601.08,600.18,0.33323336]
[1743392624458,0.30599937,601.07,600.18,0.33323336]
[1743392626256,0.30599937,601.06,600.18,0.33323336]
[1743392626457,0.30599937,601.09,600.18,0.33323336]
[1743392626753,0.30599937,601.08,600.18,0.33323336]
[1743392626953,0.30599937,601.09,600.18,0.33323336]
[1743392627358,0.28988888,601.07,600.18,0.33323336]
[1743392627554,0.30599937,601.06,600.18,0.33323336]
[1743392628558,0.30602485,601.05,600.18,0.33323336]
[1743392628756,0.30602485,601.06,600.18,0.33323336]
[1743392629360,0.508,601.1,600.18,0.33323336]
[1743392629563,0.30602646,601.09,600.18,0.33323336]
[1743392630261,0.28987922,601.08,600.18,0.33323336]
[1743392630458,0.30602646,601.07,600.18,0.33323336]
[1743392632163,0.30602646,601.09,600.18,0.33323336]
[1743392632360,0.28981886,601.06,600.18,0.33323336]
[1743392632557,0.30602646,601.05,600.18,0.33323336]
[1743392635273,0.59583808,601.04,600.18,0.33323336]
[1743392635572,0.30602646,601.03,600.18,0.33323336]
[1743392636671,0.28981162,601.04,600.18,0.33323336]
[1743392636866,0.30599718,601.03,600.18,0.33323336]
[1743392637370,0.28981162,601.04,600.18,0.33323336]
[1743392637968,0.508,601.1,600.18,0.33323336]
[1743392638271,0.28980438,601.03,600.18,0.33323336]
[1743392640971,0.508,601.1,600.18,0.33323336]
[1743392641171,0.30599685,601.09,600.18,0.33323336]
[1743392641472,0.28980438,601.02,600.18,0.33323336]
[1743392643974,0.508,601.1,600.18,0.33323336]
[1743392644169,0.30600553,601.09,600.18,0.33323336]
[1743392644372,0.28980438,601.01,600.18,0.33323336]
[1743392644774,0.508,601.1,600.18,0.33323336]
[1743392644975,0.30600643,601.09,600.18,0.33323336]
[1743392645172,0.30600643,601.52,600.18,0.33323336]
[1743392645369,0.63850298,601.51,600.18,0.33323336]
[1743392645573,0.2897525,601.08,600.18,0.33323336]
[1743392645774,0.6385085,601.5,600.18,0.33323336]
[1743392645775,0.30600643,601.07,600.18,0.33323336]
[1743392646074,0.30600643,601.06,600.18,0.33323336]
[1743392647275,0.529,601.05,600.18,0.33323336]
[1743392647478,0.30601355,601.04,600.18,0.33323336]
[1743392650273,0.28981042,601.03,600.18,0.33323336]
[1743392650477,0.30601355,601.02,600.18,0.33323336]
[1743392653273,0.30601355,601.04,600.18,0.33323336]
[1743392653479,0.28981283,601.01,600.18,0.33323336]
[1743392653780,0.529,601.05,600.18,0.33323336]
[1743392653976,0.30598374,601.04,600.18,0.33323336]
[1743392654581,0.529,601.05,600.18,0.33323336]
[1743392654782,0.30598547,601.04,600.18,0.33323336]
[1743392657286,0.28986835,601.03,600.18,0.33323336]
[1743392657486,0.30598547,601.02,600.18,0.33323336]
[1743392658783,0.28986835,601.03,600.18,0.33323336]
[1743392659089,2.52093128,601.4,600.18,0.33323336]
[1743392659386,0.30597668,601.39,600.18,0.33323336]
[1743392659986,0.59578617,601.38,600.18,0.33323336]
[1743392660185,0.30597213,601.37,600.18,0.33323336]
[1743392661291,0.806,601.36,600.18,0.33323336]
[1743392661491,0.30597213,601.35,600.18,0.33323336]
[1743392662391,0.28974888,601.34,600.18,0.33323336]
[1743392662589,0.30597213,601.33,600.18,0.33323336]
[1743392665494,0.806,601.36,600.18,0.33323336]
[1743392665495,0.59572101,601.32,600.18,0.33323336]
[1743392665790,0.30597213,601.31,600.18,0.33323336]
[1743392668389,0.30597213,601.3,600.18,0.33323336]
[1743392668700,0.30597213,601.29,600.18,0.33323336]
[1743392671198,0.30597213,601.35,600.18,0.33323336]
[1743392671499,0.28976819,601.28,600.18,0.33323336]
[1743392671797,0.30597213,601.27,600.18,0.33323336]
[1743392674198,0.30597213,601.35,600.18,0.33323336]
[1743392674399,0.30597213,601.26,600.18,0.33323336]
[1743392674698,0.30597213,601.25,600.18,0.33323336]
[1743392674898,0.30597213,601.24,600.18,0.33323336]
[1743392675093,0.30597213,601.35,600.18,0.33323336]
[1743392675292,0.28985507,601.24,600.18,0.33323336]
[1743392675493,0.30597213,601.23,600.18,0.33323336]
[1743392675897,0.30597213,601.35,600.18,0.33323336]
[1743392676301,0.30604002,601.34,600.18,0.33323336]
[1743392676604,0.30604002,601.33,600.18,0.33323336]
[1743392677295,0.30604002,601.35,600.18,0.33323336]
[1743392677595,0.28986956,601.32,600.18,0.33323336]
[1743392677796,0.30604002,601.31,600.18,0.33323336]
[1743392677994,0.28986956,601.32,600.18,0.33323336]
[1743392678194,0.30603981,601.31,600.18,0.33323336]
[1743392680105,0.30607784,601.3,600.18,0.33323336]
[1743392680300,0.30607784,601.29,600.18,0.33323336]
[1743392681909,0.30611087,601.28,600.18,0.33323336]
[1743392682205,0.738,601.28,600.18,0.33323336]
[1743392682407,0.30611522,601.27,600.18,0.33323336]
[1743392683306,0.3326348,601.26,600.18,0.33323336]
[1743392683511,0.30611522,601.25,600.18,0.33323336]
[1743392684007,0.63875555,601.25,600.18,0.33323336]
[1743392684210,0.30611522,601.24,600.18,0.33323336]
[1743392686512,0.28995892,601.23,600.18,0.33323336]
[1743392686713,0.30611522,601.22,600.18,0.33323336]
[1743392687818,0.28995892,601.23,600.18,0.33323336]
[1743392688013,0.30612017,601.22,600.18,0.33323336]
[1743392689015,0.33264033,601.25,600.18,0.33323336]
[1743392689214,0.30610039,601.24,600.18,0.33323336]
[1743392690109,0.28994926,601.23,600.18,0.33323336]
[1743392690313,0.30610039,601.22,600.18,0.33323336]
[1743392691315,0.30610039,601.21,600.18,0.33323336]
[1743392691514,0.30610039,601.22,600.18,0.33323336]
[1743392691710,0.30610039,601.21,600.18,0.33323336]
[1743392692016,0.30610039,601.2,600.18,0.33323336]
[1743392692215,0.30610039,601.24,600.18,0.33323336]
[1743392692416,0.30610039,601.23,600.18,0.33323336]
[1743392692616,0.30610039,601.24,600.18,0.33323336]
[1743392692813,0.30610039,601.23,600.18,0.33323336]
[1743392693011,0.30610039,601.24,600.18,0.33323336]
[1743392693215,0.28993476,601.22,600.18,0.33323336]
[1743392693411,0.30610039,601.21,600.18,0.33323336]
[1743392693912,0.30610039,601.2,600.18,0.33323336]
[1743392694111,0.30610039,601.19,600.18,0.33323336]
[1743392694310,0.30610039,601.18,600.18,0.33323336]
[1743392694512,0.30610039,601.17,600.18,0.33323336]
[1743392694816,0.30610039,601.16,600.18,0.33323336]
[1743392695018,0.30610039,601.15,600.18,0.33323336]
[1743392695218,0.30610039,601.14,600.18,0.33323336]
[1743392695413,0.30610039,601.13,600.18,0.33323336]
[1743392695619,0.30610039,601.24,600.18,0.33323336]
[1743392695819,0.30610039,601.23,600.18,0.33323336]
[1743392696018,0.30610039,601.24,600.18,0.33323336]
[1743392696211,0.28993597,601.22,600.18,0.33323336]
[1743392696417,0.30610039,601.21,600.18,0.33323336]
[1743392697318,0.28993597,601.22,600.18,0.33323336]
[1743392697519,0.30611499,601.21,600.18,0.33323336]
[1743392701224,0.30611499,601.24,600.18,0.33323336]
[1743392701424,0.33265139,601.23,600.18,0.33323336]
[1743392701625,0.30611499,601.22,600.18,0.33323336]
[1743392702026,0.59609083,601.22,600.18,0.33323336]
[1743392702223,0.30611499,601.21,600.18,0.33323336]
[1743392703421,0.30611499,601.2,600.18,0.33323336]
[1743392703725,0.30611499,601.19,600.18,0.33323336]
[1743392704025,0.30611499,601.18,600.18,0.33323336]
[1743392704225,0.30611499,601.17,600.18,0.33323336]
[1743392704430,0.30611499,601.16,600.18,0.33323336]
[1743392704629,0.30611499,601.15,600.18,0.33323336]
[1743392704824,0.30611499,601.14,600.18,0.33323336]
[1743392705028,0.30611499,601.16,600.18,0.33323336]
[1743392705328,0.30611499,601.15,600.18,0.33323336]
[1743392705629,0.30611499,601.14,600.18,0.33323336]
[1743392705830,0.30611499,601.16,600.18,0.33323336]
[1743392706025,0.30611499,601.15,600.18,0.33323336]
[1743392706224,0.30611499,601.14,600.18,0.33323336]
[1743392706728,0.30611499,601.13,600.18,0.33323336]
[1743392706926,0.30611499,601.16,600.18,0.33323336]
[1743392707129,0.30611499,601.15,600.18,0.33323336]
[1743392707324,0.30611499,601.14,600.18,0.33323336]
[1743392707530,0.28986352,601.15,600.18,0.33323336]
[1743392707729,0.30611499,601.13,600.18,0.33323336]
[1743392707926,0.30611499,601.12,600.18,0.33323336]
[1743392708131,0.30611499,601.14,600.18,0.33323336]
[1743392708834,0.28986352,601.15,600.18,0.33323336]
[1743392709134,0.30611892,601.14,600.18,0.33323336]
[1743392710430,0.28988042,601.13,600.18,0.33323336]
[1743392710831,0.30611892,601.12,600.18,0.33323336]
[1743392713236,0.30611892,601.22,600.18,0.33323336]
[1743392713428,0.28986594,601.11,600.18,0.33323336]
[1743392713631,0.30611892,601.1,600.18,0.33323336]
[1743392713833,0.30608574,601.09,600.18,0.33323336]
[1743392714033,0.30608574,601.22,600.18,0.33323336]
[1743392714234,0.30608574,601.21,600.18,0.33323336]
[1743392714437,0.28983817,601.21,600.18,0.33323336]
[1743392714736,0.30608574,601.2,600.18,0.33323336]
[1743392716136,2.82701702,601.2,600.18,0.33323336]
[1743392716328,0.30608574,601.19,600.18,0.33323336]
[1743392716532,0.59600722,601.19,600.18,0.33323336]
[1743392716732,0.30608574,601.18,600.18,0.33323336]
[1743392717432,0.28992148,601.19,600.18,0.33323336]
[1743392717433,0.30608574,601.17,600.18,0.33323336]
[1743392717936,0.30608574,601.16,600.18,0.33323336]
[1743392718129,0.30608574,601.15,600.18,0.33323336]
[1743392718336,0.30608574,601.14,600.18,0.33323336]
[1743392718532,0.30608574,601.13,600.18,0.33323336]
[1743392718731,0.30608574,601.12,600.18,0.33323336]
[1743392718932,0.30608574,601.18,600.18,0.33323336]
[1743392719231,2.52093128,601.11,600.18,0.33323336]
[1743392719536,0.30608574,601.1,600.18,0.33323336]
[1743392721037,0.28986473,601.11,600.18,0.33323336]
[1743392721337,0.30611095,601.1,600.18,0.33323336]
[1743392722238,0.30611095,601.16,600.18,0.33323336]
[1743392723339,0.28997946,601.15,600.18,0.33323336]
[1743392723539,0.30611095,601.14,600.18,0.33323336]
[1743392725438,0.30611095,601.16,600.18,0.33323336]
[1743392725737,0.30611095,601.15,600.18,0.33323336]
[1743392725943,0.30611095,601.16,600.18,0.33323336]
[1743392726243,0.28998792,601.14,600.18,0.33323336]
[1743392726444,0.30611095,601.13,600.18,0.33323336]
[1743392726645,0.28998792,601.14,600.18,0.33323336]
[1743392726845,0.3061266,601.13,600.18,0.33323336]
[1743392728240,0.3061266,601.16,600.18,0.33323336]
[1743392729345,0.28998913,601.15,600.18,0.33323336]
[1743392729546,0.3061266,601.14,600.18,0.33323336]
[1743392729739,0.3061266,601.14,599.81,0.28998913]
[1743392729943,0.3061266,601.14,599.82,0.33343336]
[1743392731246,0.3061266,601.13,599.82,0.33343336]
[1743392731442,0.3061266,601.16,599.82,0.33343336]
[1743392731641,0.29000121,601.12,599.82,0.33343336]
[1743392731846,0.3061266,601.11,599.82,0.33343336]
[1743392732047,0.29000121,601.12,599.82,0.33343336]
[1743392732247,0.30615254,601.11,599.82,0.33343336]
[1743392734251,0.30615254,601.16,599.82,0.33343336]
[1743392734549,0.28999033,601.1,599.82,0.33343336]
[1743392734750,0.30615254,601.09,599.82,0.33343336]
[1743392735949,0.30612196,601.08,599.82,0.33343336]
[1743392736250,0.30612196,601.07,599.82,0.33343336]
[1743392736450,0.30612196,601.09,599.82,0.33343336]
[1743392736646,0.30609328,601.08,599.83,0.28869234]
[1743392736847,0.30609328,601.09,599.84,0.33342224]
[1743392737054,0.30609328,601.09,599.85,0.28869234]
[1743392737346,0.30609328,601.08,599.86,0.33341112]
[1743392737548,0.28985749,601.08,599.87,0.28869234]
[1743392737748,0.30609328,601.07,599.88,0.33340001]
[1743392737951,0.30609328,601.07,599.89,0.28869234]
[1743392738150,0.30609328,601.07,599.9,0.33338889]
[1743392740253,0.30609328,601.16,599.9,0.33338889]
[1743392740454,0.28996134,601.06,599.9,0.33338889]
[1743392740649,0.30609328,601.05,599.9,0.33338889]
[1743392741149,0.30609328,601.16,599.9,0.33338889]
[1743392741354,0.30612288,601.15,599.9,0.33338889]
[1743392741654,0.30612288,601.14,599.9,0.33338889]
[1743392742049,0.28988042,601.15,599.9,0.33338889]
[1743392742254,0.30612272,601.14,599.9,0.33338889]
[1743392743253,0.30612272,601.16,599.9,0.33338889]
[1743392743453,0.30612257,601.15,599.9,0.33338889]
[1743392743653,0.30612257,601.16,599.9,0.33338889]
[1743392743851,0.30612257,601.15,599.9,0.33338889]
[1743392744054,0.30612257,601.16,599.9,0.33338889]
[1743392744349,0.28996013,601.14,599.9,0.33338889]
[1743392744556,0.30612257,601.13,599.9,0.33338889]
[1743392746251,0.30612257,601.16,599.9,0.33338889]
[1743392746450,0.30612257,601.15,599.9,0.33338889]
[1743392746653,0.30612257,601.14,599.9,0.33338889]